fUSD/lending_fUSD_20260606
["ID","MTS","AMOUNT","RATE_DAILY","PERIOD"]
[424265441,1780708276000,-416.188353,0.00038294,30]
[424265446,1780708276000,-238.116691,0.00038294,30]
[424265445,1780708276000,-416.188358,0.00038294,30]
[424265444,1780708276000,-416.188353,0.00038294,30]
[424265447,1780708276000,-400.0,0.00038294,30]
[424265450,1780708276000,-151.0,0.00038294,30]
[424265451,1780708276000,-151.0,0.00038294,30]
[424265454,1780708276000,-1219.584576,0.00038294,30]
[424265452,1780708276000,-238.116691,0.00038294,30]
[424265448,1780708276000,-238.116691,0.00038294,30]
[424265453,1780708276000,-1219.584576,0.00038294,30]
[424265458,1780708276000,-1174.20853,0.00038294,30]
[424265460,1780708276000,-1219.584576,0.00038294,30]
[424265455,1780708276000,-400.0,0.00038294,30]
[424265456,1780708276000,-1174.20853,0.00038294,30]
[424265459,1780708276000,-1219.584576,0.00038294,30]
[424265463,1780708276000,-1174.20853,0.00038294,30]
[424265464,1780708276000,-723.193245,0.00038294,30]
[424265462,1780708276000,-723.193245,0.00038294,30]
[424265465,1780708276000,-1219.584576,0.00038294,30]
[424265466,1780708276000,-1174.20853,0.00038294,30]
[424265411,1780708276000,-342.28052,0.00038294,30]
[424265467,1780708276000,-1219.584576,0.00038294,30]
[424265457,1780708276000,-238.116684,0.00038294,30]
[424265449,1780708276000,-400.0,0.00038294,30]
[424265461,1780708276000,-400.0,0.00038294,30]
[424265438,1780708276000,-924.780108,0.00038294,30]
[424265412,1780708276000,-1502.447356,0.00038294,30]
[424265439,1780708276000,-151.0,0.00038294,30]
[424265414,1780708276000,-1502.447356,0.00038294,30]
[424265416,1780708276000,-1502.447347,0.00038294,30]
[424265415,1780708276000,-323.208621,0.00038294,30]
[424265418,1780708276000,-323.208621,0.00038294,30]
[424265417,1780708276000,-2089.359127,0.00038294,30]
[424265419,1780708276000,-2089.359127,0.00038294,30]
[424265420,1780708276000,-323.208621,0.00038294,30]
[424265422,1780708276000,-323.208622,0.00038294,30]
[424265421,1780708276000,-2089.359127,0.00038294,30]
[424265425,1780708276000,-162.504604,0.00038294,30]
[424265424,1780708276000,-1287.378784,0.00038294,30]
[424265413,1780708276000,-1502.447356,0.00038294,30]
[424265428,1780708276000,-162.504604,0.00038294,30]
[424265437,1780708276000,-193.069062,0.00038294,30]
[424265423,1780708276000,-2089.35913,0.00038294,30]
[424265435,1780708276000,-924.780105,0.00038294,30]
[424265433,1780708276000,-1287.378784,0.00038294,30]
[424265432,1780708276000,-162.504614,0.00038294,30]
[424265434,1780708276000,-151.0,0.00038294,30]
[424265427,1780708276000,-162.504604,0.00038294,30]
[424265431,1780708276000,-924.780105,0.00038294,30]
[424265430,1780708276000,-151.0,0.00038294,30]
[424265429,1780708276000,-924.780105,0.00038294,30]
[424265426,1780708276000,-1287.378784,0.00038294,30]
[424265436,1780708276000,-1287.37878244,0.00038294,30]
[424265499,1780708277000,-616.852183,0.00038294,30]
[424265496,1780708277000,-616.852183,0.00038294,30]
[424265503,1780708277000,-151.0,0.00038294,30]
[424265511,1780708277000,-2532.201305,0.00038294,28]
[424265506,1780708277000,-616.852179,0.00038294,30]
[424265502,1780708277000,-616.852183,0.00038294,30]
[424265510,1780708277000,-166.396231,0.00038294,30]
[424265509,1780708277000,-2532.201305,0.00038294,28]
[424265501,1780708277000,-616.852183,0.00038294,30]
[424265500,1780708277000,-616.852183,0.00038294,30]
[424265505,1780708277000,-616.852183,0.00038294,30]
[424265504,1780708277000,-151.0,0.00038294,30]
[424265508,1780708277000,-166.396231,0.00038294,30]
[424265521,1780708277000,-2532.201305,0.00038294,28]
[424265513,1780708277000,-2532.201305,0.00038294,28]
[424265512,1780708277000,-166.396231,0.00038294,30]
[424265515,1780708277000,-2532.201305,0.00038294,28]
[424265519,1780708277000,-2532.201305,0.00038294,28]
[424265514,1780708277000,-166.396231,0.00038294,30]
[424265516,1780708277000,-166.396231,0.00038294,30]
[424265517,1780708277000,-2532.201305,0.00038294,28]
[424265518,1780708277000,-166.396231,0.00038294,30]
[424265520,1780708277000,-166.396226,0.00038294,30]
[424265531,1780708277000,-1543.31254,0.00038294,7]
[424265523,1780708277000,-151.0,0.00038294,30]
[424265498,1780708277000,-847.79026468,0.00038294,30]
[424265507,1780708277000,-166.396231,0.00038294,30]
[424265497,1780708277000,-847.790271,0.00038294,30]
[424265472,1780708277000,-1174.20853,0.00038294,30]
[424265492,1780708277000,-847.790271,0.00038294,30]
[424265532,1780708277000,-1543.31254,0.00038294,7]
[424265471,1780708277000,-1174.20853,0.00038294,30]
[424265474,1780708277000,-1174.208537,0.00038294,30]
[424265473,1780708277000,-723.193245,0.00038294,30]
[424265468,1780708277000,-723.193245,0.00038294,30]
[424265469,1780708277000,-1174.20853,0.00038294,30]
[424265470,1780708277000,-723.193245,0.00038294,30]
[424265475,1780708277000,-723.193245,0.00038294,30]
[424265477,1780708277000,-1219.584585,0.00038294,30]
[424265479,1780708277000,-723.193242,0.00038294,30]
[424265478,1780708277000,-723.193245,0.00038294,30]
[424265483,1780708277000,-847.790271,0.00038294,30]
[424265494,1780708277000,-616.852183,0.00038294,30]
[424265480,1780708277000,-254.591068,0.00038294,30]
[424265476,1780708277000,-1219.584576,0.00038294,30]
[424265482,1780708277000,-1094.222631,0.00038294,30]
[424265486,1780708277000,-1094.222631,0.00038294,30]
[424265484,1780708277000,-847.790271,0.00038294,30]
[424265485,1780708277000,-1094.222631,0.00038294,30]
[424265487,1780708277000,-847.790271,0.00038294,30]
[424265489,1780708277000,-1094.222631,0.00038294,30]
[424265488,1780708277000,-847.790271,0.00038294,30]
[424265491,1780708277000,-847.790271,0.00038294,30]
[424265490,1780708277000,-1094.222631,0.00038294,30]
[424265493,1780708277000,-1094.222631,0.00038294,30]
[424265495,1780708277000,-1094.222631,0.00038294,30]
[424265481,1780708277000,-1094.222631,0.00038294,30]
[424265522,1780708277000,-2532.201314,0.00038294,28]
[424265574,1780708277000,-1638.759717,0.00038294,30]
[424265524,1780708277000,-151.0,0.00038294,30]
[424265558,1780708277000,-1091.871311,0.00038294,30]
[424265560,1780708277000,-532.737278,0.00038294,30]
[424265562,1780708277000,-532.737278,0.00038294,30]
[424265563,1780708277000,-151.0,0.00038294,30]
[424265564,1780708277000,-151.0,0.00038294,30]
[424265559,1780708277000,-699.951216,0.00038294,15]
[424265565,1780708277000,-181.313747,0.00038294,30]
[424265566,1780708277000,-699.951216,0.00038294,15]
[424265569,1780708277000,-699.951216,0.00038294,15]
[424265568,1780708277000,-151.0,0.00038294,30]
[424265567,1780708277000,-181.313747,0.00038294,30]
[424265572,1780708277000,-532.737278,0.00038294,30]
[424265561,1780708277000,-151.0,0.00038294,30]
[424265573,1780708277000,-151.0,0.00038294,30]
[424265575,1780708277000,-151.0,0.00038294,30]
[424265576,1780708277000,-1638.759717,0.00038294,30]
[424265581,1780708277000,-532.737278,0.00038294,30]
[424265579,1780708277000,-151.0,0.00038294,30]
[424265577,1780708277000,-151.0,0.00038294,30]
[424265578,1780708277000,-532.737278,0.00038294,30]
[424265580,1780708277000,-174.814168,0.00038294,30]
[424265582,1780708277000,-1638.759717,0.00038294,30]
[424265583,1780708277000,-151.0,0.00038294,30]
[424265584,1780708277000,-1638.759717,0.00038294,30]
[424265585,1780708277000,-151.0,0.00038294,30]
[424265533,1780708277000,-1091.871311,0.00038294,30]
[424265571,1780708277000,-151.0,0.00038294,30]
[424265553,1780708277000,-181.313747,0.00038294,30]
[424265570,1780708277000,-532.737278,0.00038294,30]
[424265555,1780708277000,-699.951216,0.00038294,15]
[424265525,1780708277000,-1543.31254,0.00038294,7]
[424265552,1780708277000,-151.0,0.00038294,30]
[424265526,1780708277000,-1543.31254,0.00038294,7]
[424265529,1780708277000,-1543.31254,0.00038294,7]
[424265527,1780708277000,-151.0,0.00038294,30]
[424265530,1780708277000,-1543.31254,0.00038294,7]
[424265528,1780708277000,-151.0,0.00038294,30]
[424265535,1780708277000,-1543.31254,0.00038294,7]
[424265534,1780708277000,-1091.871311,0.00038294,30]
[424265542,1780708277000,-699.951216,0.00038294,15]
[424265541,1780708277000,-1091.871311,0.00038294,30]
[424265545,1780708277000,-699.951216,0.00038294,15]
[424265537,1780708277000,-181.313747,0.00038294,30]
[424265538,1780708277000,-699.951216,0.00038294,15]
[424265539,1780708277000,-1091.871311,0.00038294,30]
[424265551,1780708277000,-151.0,0.00038294,30]
[424265550,1780708277000,-532.737278,0.00038294,30]
[424265543,1780708277000,-181.313747,0.00038294,30]
[424265556,1780708277000,-181.313747,0.00038294,30]
[424265549,1780708277000,-699.951216,0.00038294,15]
[424265557,1780708277000,-151.0,0.00038294,30]
[424265547,1780708277000,-1091.871311,0.00038294,30]
[424265548,1780708277000,-532.737278,0.00038294,30]
[424265546,1780708277000,-181.313747,0.00038294,30]
[424265536,1780708277000,-1543.31254,0.00038294,7]
[424265540,1780708277000,-181.313747,0.00038294,30]
[424265544,1780708277000,-1091.871311,0.00038294,30]
[424265554,1780708277000,-1091.871311,0.00038294,30]
[424265628,1780708278000,-4234.643227,0.00038294,30]
[424265630,1780708278000,-470.75516,0.00038294,30]
[424265627,1780708278000,-249.099389,0.00038294,30]
[424265625,1780708278000,-4234.643227,0.00038294,30]
[424265624,1780708278000,-470.75516,0.00038294,30]
[424265615,1780708278000,-732.063316,0.00038294,30]
[424265649,1780708278000,-196.858265,0.00038294,30]
[424265623,1780708278000,-4234.643227,0.00038294,30]
[424265622,1780708278000,-4234.643227,0.00038294,30]
[424265620,1780708278000,-4234.643227,0.00038294,30]
[424265626,1780708278000,-470.75516,0.00038294,30]
[424265631,1780708278000,-4234.643227,0.00038294,30]
[424265629,1780708278000,-249.099389,0.00038294,30]
[424265645,1780708278000,-196.858265,0.00038294,30]
[424265643,1780708278000,-151.0,0.00038294,30]
[424265644,1780708278000,-151.0,0.00038294,30]
[424265632,1780708278000,-470.75516,0.00038294,30]
[424265639,1780708278000,-470.755168,0.00038294,30]
[424265634,1780708278000,-249.099389,0.00038294,30]
[424265593,1780708278000,-520.534854,0.00038294,30]
[424265637,1780708278000,-470.75516,0.00038294,30]
[424265640,1780708278000,-249.099389,0.00038294,30]
[424265636,1780708278000,-470.75516,0.00038294,30]
[424265635,1780708278000,-470.75516,0.00038294,30]
[424265638,1780708278000,-249.099389,0.00038294,30]
[424265641,1780708278000,-249.099389,0.00038294,30]
[424265612,1780708278000,-732.063316,0.00038294,30]
[424265633,1780708278000,-249.099389,0.00038294,30]
[424265614,1780708278000,-732.063316,0.00038294,30]
[424265588,1780708278000,-151.0,0.00038294,30]
[424265613,1780708278000,-732.063316,0.00038294,30]
[424265586,1780708278000,-520.534854,0.00038294,30]
[424265587,1780708278000,-520.534854,0.00038294,30]
[424265592,1780708278000,-151.0,0.00038294,30]
[424265590,1780708278000,-1638.759717,0.00038294,30]
[424265589,1780708278000,-1638.759717,0.00038294,30]
[424265591,1780708278000,-520.534854,0.00038294,30]
[424265595,1780708278000,-1638.759717,0.00038294,30]
[424265597,1780708278000,-520.534854,0.00038294,30]
[424265594,1780708278000,-151.0,0.00038294,30]
[424265598,1780708278000,-520.534854,0.00038294,30]
[424265596,1780708278000,-1638.759717,0.00038294,30]
[424265606,1780708278000,-151.0,0.00038294,30]
[424265600,1780708278000,-520.534854,0.00038294,30]
[424265602,1780708278000,-520.534854,0.00038294,30]
[424265604,1780708278000,-172.055426,0.00038294,30]
[424265599,1780708278000,-151.0,0.00038294,30]
[424265605,1780708278000,-151.0,0.00038294,30]
[424265603,1780708278000,-151.0,0.00038294,30]
[424265601,1780708278000,-151.0,0.00038294,30]
[424265608,1780708278000,-151.0,0.00038294,30]
[424265616,1780708278000,-732.063316,0.00038294,30]
[424265619,1780708278000,-4234.643227,0.00038294,30]
[424265617,1780708278000,-732.063316,0.00038294,30]
[424265618,1780708278000,-732.063316,0.00038294,30]
[424265607,1780708278000,-151.0,0.00038294,30]
[424265610,1780708278000,-151.0,0.00038294,30]
[424265611,1780708278000,-732.063316,0.00038294,30]
[424265609,1780708278000,-151.0,0.00038294,30]
[424265647,1780708278000,-151.0,0.00038294,30]
[424265621,1780708278000,-4234.643227,0.00038294,30]
[424265646,1780708278000,-196.858265,0.00038294,30]
[424265684,1780708278000,-500.0,0.00038326,60]
[424265694,1780708278000,-12872.4,0.00038353,9]
[424265695,1780708278000,-274.89,0.00038355,120]
[424265683,1780708278000,-500.0,0.00038326,60]
[424265688,1780708278000,-177.19523279,0.00038329,120]
[424265685,1780708278000,-500.0,0.00038326,60]
[424265686,1780708278000,-534.40820502,0.00038326,60]
[424265693,1780708278000,-152.21,0.00038353,9]
[424265692,1780708278000,-236325.36,0.00038353,9]
[424265691,1780708278000,-641.0,0.0003835,14]
[424265689,1780708278000,-150.0,0.00038346,120]
[424265687,1780708278000,-1000.0,0.00038327,60]
[424265690,1780708278000,-350.0,0.00038347,5]
[424265678,1780708278000,-500.0,0.00038326,60]
[424265696,1780708278000,-300.0,0.00038355,120]
[424265705,1780708278000,-1511.36,0.00038356,120]
[424265701,1780708278000,-1500.0,0.00038356,120]
[424265702,1780708278000,-1511.36,0.00038356,120]
[424265697,1780708278000,-300.0,0.00038355,120]
[424265698,1780708278000,-300.0,0.00038355,120]
[424265700,1780708278000,-172.0,0.00038356,120]
[424265703,1780708278000,-1511.36,0.00038356,120]
[424265707,1780708278000,-1511.36,0.00038356,120]
[424265706,1780708278000,-1511.36,0.00038356,120]
[424265704,1780708278000,-1511.36,0.00038356,120]
[424265709,1780708278000,-1511.36,0.00038356,120]
[424265708,1780708278000,-1511.36,0.00038356,120]
[424265648,1780708278000,-151.0,0.00038294,30]
[424265699,1780708278000,-1694.61,0.00038356,2]
[424265681,1780708278000,-500.0,0.00038326,60]
[424265642,1780708278000,-249.099393,0.00038294,30]
[424265680,1780708278000,-500.0,0.00038326,60]
[424265654,1780708278000,-196.858265,0.00038294,30]
[424265651,1780708278000,-3962.057198,0.00038294,30]
[424265656,1780708278000,-3962.057198,0.00038294,30]
[424265652,1780708278000,-196.858265,0.00038294,30]
[424265650,1780708278000,-3962.057198,0.00038294,30]
[424265653,1780708278000,-151.0,0.00038294,30]
[424265655,1780708278000,-151.0,0.00038294,30]
[424265659,1780708278000,-151.0,0.00038294,30]
[424265666,1780708278000,-3962.057198,0.00038294,30]
[424265668,1780708278000,-190.57559559,0.00038299,2]
[424265658,1780708278000,-3962.057198,0.00038294,30]
[424265657,1780708278000,-196.858265,0.00038294,30]
[424265667,1780708278000,-267.621206,0.00038294,30]
[424265669,1780708278000,-2000.0,0.000383,54]
[424265679,1780708278000,-500.0,0.00038326,60]
[424265660,1780708278000,-151.0,0.00038294,30]
[424265677,1780708278000,-500.0,0.00038326,60]
[424265671,1780708278000,-2817.72951517,0.00038301,2]
[424265674,1780708278000,-150.0,0.00038303,120]
[424265682,1780708278000,-500.0,0.00038326,60]
[424265662,1780708278000,-151.0,0.00038294,30]
[424265676,1780708278000,-3305.3365191,0.00038307,30]
[424265673,1780708278000,-150.0,0.00038303,120]
[424265672,1780708278000,-1828.58566205,0.00038301,2]
[424265670,1780708278000,-1540.81760432,0.00038301,2]
[424265665,1780708278000,-258.35355,0.00038294,30]
[424265664,1780708278000,-196.858265,0.00038294,30]
[424265663,1780708278000,-3962.057198,0.00038294,30]
[424265661,1780708278000,-196.858265,0.00038294,30]
[424265675,1780708278000,-150.0,0.00038307,120]
[424265745,1780708279000,-305.57,0.00038363,120]
[424265754,1780708279000,-338.676137,0.000384,7]
[424265752,1780708279000,-410.0,0.000384,2]
[424265755,1780708279000,-169.541572,0.000384,7]
[424265749,1780708279000,-2000.0,0.00038399,15]
[424265738,1780708279000,-15558.67,0.00038356,14]
[424265746,1780708279000,-5000.0,0.00038367,7]
[424265748,1780708279000,-150.0,0.00038385,120]
[424265737,1780708279000,-1562.0,0.00038356,30]
[424265736,1780708279000,-700.49,0.00038356,120]
[424265751,1780708279000,-1337.0,0.000384,2]
[424265750,1780708279000,-1349.0,0.000384,2]
[424265753,1780708279000,-344.676137,0.000384,7]
[424265758,1780708279000,-169.541572,0.000384,7]
[424265766,1780708279000,-336.162866,0.000384,7]
[424265757,1780708279000,-172.541572,0.000384,7]
[424265760,1780708279000,-253.562358,0.000384,7]
[424265767,1780708279000,-333.162866,0.000384,7]
[424265756,1780708279000,-171.041572,0.000384,7]
[424265768,1780708279000,-339.162866,0.000384,7]
[424265759,1780708279000,-259.562358,0.000384,7]
[424265761,1780708279000,-254.11,0.000384,2]
[424265762,1780708279000,-360.162873,0.000384,7]
[424265765,1780708279000,-339.162866,0.000384,7]
[424265764,1780708279000,-333.162866,0.000384,7]
[424265763,1780708279000,-336.162866,0.000384,7]
[424265735,1780708279000,-684.98,0.00038356,120]
[424265747,1780708279000,-280.0,0.0003838,120]
[424265734,1780708279000,-1367.98,0.00038356,30]
[424265726,1780708279000,-1511.36,0.00038356,120]
[424265741,1780708279000,-216.88358505,0.00038356,2]
[424265719,1780708279000,-1511.36,0.00038356,120]
[424265710,1780708279000,-1511.36,0.00038356,120]
[424265713,1780708279000,-1511.36,0.00038356,120]
[424265711,1780708279000,-1511.36,0.00038356,120]
[424265712,1780708279000,-1511.36,0.00038356,120]
[424265718,1780708279000,-1511.36,0.00038356,120]
[424265716,1780708279000,-1511.36,0.00038356,120]
[424265714,1780708279000,-1511.36,0.00038356,120]
[424265715,1780708279000,-1511.36,0.00038356,120]
[424265717,1780708279000,-1511.36,0.00038356,120]
[424265723,1780708279000,-1511.36,0.00038356,120]
[424265720,1780708279000,-1511.36,0.00038356,120]
[424265722,1780708279000,-1511.36,0.00038356,120]
[424265721,1780708279000,-1511.36,0.00038356,120]
[424265769,1780708279000,-336.162866,0.000384,7]
[424265730,1780708279000,-1511.36,0.00038356,120]
[424265724,1780708279000,-1511.36,0.00038356,120]
[424265731,1780708279000,-1511.19529123,0.00038356,120]
[424265725,1780708279000,-1511.36,0.00038356,120]
[424265729,1780708279000,-1511.36,0.00038356,120]
[424265727,1780708279000,-1511.36,0.00038356,120]
[424265728,1780708279000,-1511.36,0.00038356,120]
[424265739,1780708279000,-668.83,0.00038356,30]
[424265742,1780708279000,-433.7671701,0.00038356,2]
[424265740,1780708279000,-667.25,0.00038356,30]
[424265744,1780708279000,-867.5343402,0.00038356,2]
[424265732,1780708279000,-619.82,0.00038356,7]
[424265733,1780708279000,-287.99,0.00038356,120]
[424265770,1780708279000,-605.45556351,0.000384,30]
[424265743,1780708279000,-650.65075515,0.00038356,2]
[424265772,1780708279000,-309.731599,0.000384,7]
[424265804,1780708279000,-286.546088,0.00038433,30]
[424265805,1780708279000,-286.546088,0.00038433,30]
[424265806,1780708279000,-286.546088,0.00038433,30]
[424265808,1780708279000,-615.619472,0.00038433,30]
[424265807,1780708279000,-286.54609,0.00038433,30]
[424265817,1780708279000,-5000.0,0.00038438,7]
[424265818,1780708279000,-5000.0,0.00038439,2]
[424265810,1780708279000,-615.619472,0.00038433,30]
[424265809,1780708279000,-615.619472,0.00038433,30]
[424265815,1780708279000,-161.395408,0.00038433,30]
[424265814,1780708279000,-161.395404,0.00038433,30]
[424265812,1780708279000,-161.395404,0.00038433,30]
[424265813,1780708279000,-161.395404,0.00038433,30]
[424265811,1780708279000,-615.61948,0.00038433,30]
[424265821,1780708279000,-1000.0,0.00038443,90]
[424265820,1780708279000,-5000.0,0.00038441,7]
[424265819,1780708279000,-1000.0,0.00038439,90]
[424265822,1780708279000,-152.81900171,0.00038444,7]
[424265825,1780708279000,-5000.0,0.00038447,7]
[424265824,1780708279000,-5000.0,0.00038444,7]
[424265829,1780708279000,-151.0,0.00038448,30]
[424265826,1780708279000,-47155.08456293,0.00038448,120]
[424265823,1780708279000,-152.81900171,0.00038444,14]
[424265827,1780708279000,-3463.41484411,0.00038448,2]
[424265828,1780708279000,-151.0,0.00038448,30]
[424265831,1780708279000,-151.0,0.00038448,30]
[424265771,1780708279000,-333.731602,0.000384,7]
[424265830,1780708279000,-151.0,0.00038448,30]
[424265802,1780708279000,-5000.0,0.0003843,7]
[424265816,1780708279000,-5000.0,0.00038436,7]
[424265799,1780708279000,-5000.0,0.00038427,7]
[424265780,1780708279000,-267.281999,0.000384,21]
[424265800,1780708279000,-15558.67,0.00038428,14]
[424265776,1780708279000,-306.731599,0.000384,7]
[424265779,1780708279000,-267.281999,0.000384,21]
[424265781,1780708279000,-512.76,0.000384,2]
[424265774,1780708279000,-312.731599,0.000384,7]
[424265777,1780708279000,-312.731599,0.000384,7]
[424265778,1780708279000,-309.731599,0.000384,7]
[424265773,1780708279000,-306.731599,0.000384,7]
[424265791,1780708279000,-5000.0,0.00038416,7]
[424265783,1780708279000,-5000.0,0.00038408,2]
[424265792,1780708279000,-5000.0,0.00038419,2]
[424265793,1780708279000,-5000.0,0.00038419,7]
[424265782,1780708279000,-2000.0,0.000384,60]
[424265775,1780708279000,-309.731599,0.000384,7]
[424265795,1780708279000,-150.0,0.00038423,120]
[424265787,1780708279000,-5000.0,0.00038411,7]
[424265784,1780708279000,-5000.0,0.00038408,7]
[424265785,1780708279000,-217036.0,0.00038408,120]
[424265788,1780708279000,-5000.0,0.00038414,7]
[424265789,1780708279000,-1262.79580771,0.00038414,120]
[424265790,1780708279000,-299.50806145,0.00038414,120]
[424265794,1780708279000,-5000.0,0.00038422,7]
[424265796,1780708279000,-5000.0,0.00038425,30]
[424265798,1780708279000,-459.0,0.00038426,5]
[424265797,1780708279000,-5000.0,0.00038425,7]
[424265786,1780708279000,-320.0,0.00038411,51]
[424265803,1780708279000,-5000.0,0.00038433,7]
[424265801,1780708279000,-5000.0,0.00038429,2]
[424265851,1780708280000,-3170.61737755,0.000385,90]
[424265850,1780708280000,-267.282,0.000385,21]
[424265869,1780708280000,-320.0,0.00038565,52]
[424265846,1780708280000,-2000.0,0.00038499,31]
[424265852,1780708280000,-4263.31422949,0.000385,30]
[424265848,1780708280000,-2000.0,0.00038499,102]
[424265866,1780708280000,-250.0,0.00038563,2]
[424265854,1780708280000,-173.2,0.00038518,120]
[424265857,1780708280000,-1066.69,0.00038518,120]
[424265856,1780708280000,-2000.0,0.00038518,120]
[424265858,1780708280000,-2000.0,0.00038519,105]
[424265847,1780708280000,-2000.0,0.00038499,90]
[424265855,1780708280000,-1660.04,0.00038518,120]
[424265842,1780708280000,-605.45556351,0.00038484,30]
[424265840,1780708280000,-165.0,0.0003848,120]
[424265843,1780708280000,-320.0,0.00038493,51]
[424265844,1780708280000,-2000.0,0.00038499,3]
[424265845,1780708280000,-2000.0,0.00038499,5]
[424265853,1780708280000,-150.0,0.00038501,120]
[424265838,1780708280000,-150.0,0.00038462,120]
[424265839,1780708280000,-400.0,0.0003847,2]
[424265833,1780708280000,-5000.0,0.00038449,2]
[424265835,1780708280000,-5000.0,0.00038449,2]
[424265837,1780708280000,-403.48,0.00038449,7]
[424265834,1780708280000,-5000.0,0.00038449,7]
[424265832,1780708280000,-151.0,0.00038448,30]
[424265836,1780708280000,-5000.0,0.00038449,7]
[424265841,1780708280000,-163.0,0.0003848,120]
[424265865,1780708280000,-5000.0,0.00038563,2]
[424265849,1780708280000,-15558.67,0.00038499,14]
[424265868,1780708280000,-1000.0,0.00038564,90]
[424265876,1780708280000,-320.0,0.0003857,52]
[424265859,1780708280000,-208.84,0.0003852,105]
[424265867,1780708280000,-250.0,0.00038563,2]
[424265893,1780708280000,-2000.0,0.00038597,2]
[424265895,1780708280000,-90108.34352054,0.00038598,14]
[424265894,1780708280000,-100000.0,0.00038598,14]
[424265889,1780708280000,-150.0,0.00038579,120]
[424265887,1780708280000,-320.0,0.00038575,52]
[424265892,1780708280000,-150.0,0.00038597,2]
[424265888,1780708280000,-304.3,0.00038575,52]
[424265891,1780708280000,-2000.0,0.00038595,10]
[424265886,1780708280000,-320.0,0.00038575,52]
[424265884,1780708280000,-320.0,0.00038575,52]
[424265882,1780708280000,-320.0,0.00038575,52]
[424265885,1780708280000,-320.0,0.00038575,52]
[424265883,1780708280000,-1000.0,0.00038575,90]
[424265880,1780708280000,-2000.0,0.00038574,120]
[424265890,1780708280000,-2000.0,0.00038584,14]
[424265878,1780708280000,-150.0,0.00038571,14]
[424265861,1780708280000,-150.0,0.0003854,120]
[424265871,1780708280000,-150.0,0.00038568,30]
[424265862,1780708280000,-152.0,0.00038549,7]
[424265860,1780708280000,-320.0,0.00038534,52]
[424265863,1780708280000,-320.0,0.00038555,52]
[424265875,1780708280000,-400.0,0.0003857,2]
[424265873,1780708280000,-605.45556351,0.00038568,30]
[424265864,1780708280000,-5000.0,0.00038563,2]
[424265870,1780708280000,-150.0,0.00038568,120]
[424265874,1780708280000,-400.0,0.0003857,2]
[424265881,1780708280000,-320.0,0.00038574,52]
[424265877,1780708280000,-15558.67,0.00038571,14]
[424265879,1780708280000,-320.0,0.00038573,52]
[424265872,1780708280000,-2000.0,0.00038568,52]
[424265908,1780708281000,-151.0,0.00037808,30]
[424265917,1780708281000,-1000.0,0.00038598,2]
[424265913,1780708281000,-8484.51927946,0.00038598,14]
[424265918,1780708281000,-1000.0,0.00038598,2]
[424265928,1780708281000,-1000.0,0.00038598,2]
[424265919,1780708281000,-1000.0,0.00038598,2]
[424265927,1780708281000,-43203.97,0.00038598,14]
[424265920,1780708281000,-1000.0,0.00038598,2]
[424265922,1780708281000,-1000.0,0.00038598,2]
[424265923,1780708281000,-1000.0,0.00038598,2]
[424265925,1780708281000,-1000.0,0.00038598,2]
[424265926,1780708281000,-1000.0,0.00038598,2]
[424265915,1780708281000,-1000.0,0.00038598,2]
[424265921,1780708281000,-1000.0,0.00038598,2]
[424265914,1780708281000,-1000.0,0.00038598,2]
[424265897,1780708281000,-904.1372,0.00038598,14]
[424265907,1780708281000,-151.0,0.00037808,30]
[424265924,1780708281000,-1000.0,0.00038598,2]